bitfinex/quotes_ETHUSD_20250424
["timestamp","ask_amount","ask_price","bid_price","bid_amount"]
[1745524518013,5.95572056,1766.6,1766.4,4.802]
[1745524518209,0.29511512,1766.6,1766.4,4.802]
[1745524518812,5.95570732,1766.6,1766.4,4.802]
[1745524519476,0.29511512,1766.6,1766.4,4.802]
[1745524521621,0.29511512,1766.6,1766.5,5.6609114]
[1745524521801,0.29511512,1766.6,1766.5,6.4401114]
[1745524521987,6.46062392,1767.0,1766.7,5.66021459]
[1745524522182,0.2950613,1766.9,1766.6,5.66055864]
[1745524522388,0.2950613,1766.9,1766.6,5.6603656]
[1745524522588,0.2950613,1766.9,1766.6,11.96469427]
[1745524523017,0.2950613,1766.9,1766.7,5.66011779]
[1745524523314,0.2950613,1766.9,1766.7,6.43058395]
[1745524523686,0.2950613,1766.9,1766.7,0.7705]
[1745524524017,6.47353799,1766.8,1766.4,12.36193638]
[1745524524319,6.88846863,1766.8,1766.5,6.89708718]
[1745524524521,6.07506863,1766.8,1766.5,6.89708718]
[1745524525117,6.07506863,1766.8,1766.5,6.89707205]
[1745524525311,0.41493064,1766.8,1766.5,12.55779617]
[1745524525500,7.03134507,1766.9,1766.5,12.55779617]
[1745524525688,7.03134507,1766.9,1766.5,6.89691776]
[1745524526018,0.2950613,1766.9,1766.7,5.66011155]
[1745524526193,0.2950613,1766.9,1766.8,4.803]
[1745524526807,0.2950613,1766.9,1766.8,10.46295019]
[1745524527022,0.2950613,1766.9,1766.8,4.803]
[1745524532422,0.2950613,1766.9,1766.8,11.25135019]
[1745524532608,0.2950613,1766.9,1766.8,12.94248933]
[1745524537725,0.2950613,1766.9,1766.8,6.49413914]
[1745524542338,0.2950613,1766.9,1766.8,4.803]
[1745524542538,6.75919116,1766.9,1766.8,4.803]
[1745524543117,1.0995613,1766.9,1766.8,4.803]
[1745524543933,6.75919116,1766.9,1766.8,4.803]
[1745524545639,1.0995613,1766.9,1766.8,4.803]
[1745524545843,0.2950613,1766.9,1766.8,4.803]
[1745524547340,5.95469116,1766.9,1766.8,4.803]
[1745524547740,11.03038698,1766.9,1766.8,4.803]
[1745524549648,0.2950613,1766.9,1766.8,10.46295019]
[1745524551121,0.2950613,1766.9,1766.8,4.803]
[1745524553622,0.59044557,1766.9,1766.8,4.803]
[1745524556031,0.59044557,1766.9,1766.8,10.46295019]
[1745524556441,0.59044557,1766.9,1766.8,4.803]
[1745524562560,0.59044557,1766.9,1766.8,10.46295019]
[1745524563040,0.59044557,1766.9,1766.8,4.803]
[1745524563245,0.59044557,1766.9,1766.8,10.46295019]
[1745524564276,0.59044557,1766.9,1766.8,12.15224076]
[1745524565190,0.59044557,1766.9,1766.8,4.803]
[1745524565333,6.25007543,1766.9,1766.8,4.803]
[1745524565671,0.59044557,1766.9,1766.8,4.803]
[1745524565863,6.25007543,1766.9,1766.8,4.803]
[1745524567073,0.59044557,1766.9,1766.8,4.803]
[1745524567273,0.59044557,1766.9,1766.8,11.73565019]
[1745524568857,0.59044557,1766.9,1766.8,5.2833]
[1745524569062,0.59044557,1766.9,1766.8,4.803]
[1745524571177,0.59044557,1766.9,1766.8,4.803]
[1745524581621,6.25007543,1766.9,1766.8,4.803]
[1745524584902,0.59044557,1766.9,1766.8,4.803]
[1745524585093,6.25007543,1766.9,1766.8,4.803]
[1745524585492,7.66929579,1766.9,1766.8,4.803]
[1745524586270,2.00966593,1766.9,1766.8,4.803]
[1745524587900,0.59044557,1766.9,1766.8,4.803]
[1745524588101,6.25007543,1766.9,1766.8,4.803]
[1745524593010,7.32657069,1766.9,1766.8,4.803]
[1745524593306,8.29260815,1766.9,1766.8,4.803]
[1745524600178,7.99722388,1766.9,1766.8,4.803]
[1745524601209,9.78317157,1766.9,1766.8,4.803]
[1745524608222,7.99722388,1766.9,1766.8,4.803]
[1745524610024,13.65716471,1766.9,1766.7,4.799]
[1745524610325,7.99722388,1766.9,1766.7,4.799]
[1745524611830,7.99724573,1766.9,1766.7,4.799]
[1745524612129,2.33759402,1766.9,1766.7,4.799]
[1745524612313,7.99726371,1766.9,1766.7,4.799]
[1745524614033,5.65995019,1766.8,1766.7,4.799]
[1745524614701,7.99726371,1766.9,1766.7,4.799]
[1745524615710,8.29264713,1766.9,1766.7,4.799]
[1745524617299,13.95251277,1766.9,1766.7,4.799]
[1745524617830,8.29264713,1766.9,1766.7,4.799]
[1745524618327,7.99726371,1766.9,1766.7,4.799]
[1745524619840,13.65712498,1766.9,1766.7,4.799]
[1745524620533,7.99726371,1766.9,1766.7,4.799]
[1745524621259,0.2950613,1766.9,1766.7,11.01691019]
[1745524621420,0.2950613,1766.9,1766.8,6.46725019]
[1745524621728,0.2950613,1766.9,1766.8,0.8073]
[1745524622536,0.2950613,1766.9,1766.8,6.46725019]
[1745524623832,0.2950613,1766.9,1766.8,0.8073]
[1745524633043,0.2950613,1766.9,1766.8,6.46725019]
[1745524633351,0.2950613,1766.9,1766.8,8.17581085]
[1745524633646,0.2950613,1766.9,1766.8,8.11921565]
[1745524636452,0.2950613,1766.9,1766.8,2.45926546]
[1745524638049,0.2950613,1766.9,1766.8,8.11921565]
[1745524639772,2.33759402,1766.9,1766.8,0.8073]
[1745524639953,0.2950613,1766.9,1766.8,0.8073]
[1745524641498,0.2950613,1766.9,1766.7,11.01683325]
[1745524641775,0.2950613,1766.9,1766.8,0.8163]
[1745524645278,0.2950613,1766.9,1766.8,6.47625019]
[1745524645576,0.2950613,1766.9,1766.8,0.8163]
[1745524646580,3.2950613,1766.9,1766.4,16.982]
[1745524646737,6.45715339,1766.4,1766.2,4.797]
[1745524646939,6.45709417,1766.4,1766.1,4.797]
[1745524647239,5.66165885,1766.3,1766.1,4.797]
[1745524647785,0.31773585,1766.2,1766.1,4.797]
[1745524650062,0.31773585,1766.2,1766.1,12.29574345]
[1745524650262,0.29515302,1766.4,1766.3,5.66155239]
[1745524650458,2.80503272,1767.0,1766.6,5.66047053]
[1745524650693,1.1776293,1767.0,1766.7,4.798]
[1745524650997,0.29504312,1766.9,1766.7,4.798]
[1745524651322,0.61215788,1766.9,1766.7,4.798]
[1745524652397,0.31711476,1766.8,1766.7,4.798]
[1745524659100,5.97706495,1766.8,1766.7,4.798]
[1745524659399,0.31711476,1766.8,1766.7,4.798]
[1745524662307,0.31711476,1766.8,1766.7,10.45827056]
[1745524662505,0.31711476,1766.8,1766.7,6.67482706]
[1745524662814,0.31711476,1766.8,1766.7,5.629]
[1745524663177,0.31711476,1766.8,1766.7,4.798]
[1745524663578,5.97706495,1766.8,1766.7,4.798]
[1745524663882,6.74916495,1766.8,1766.7,4.798]
[1745524667710,9.74916495,1766.8,1766.7,4.798]
[1745524667920,11.42677497,1766.8,1766.7,4.798]
[1745524672221,0.31711476,1766.8,1766.7,10.45827056]
[1745524672611,0.11711476,1766.8,1766.7,10.45827056]
[1745524674282,0.11711476,1766.8,1766.7,4.798]
[1745524677012,5.7772927,1766.8,1766.7,4.796]
[1745524677211,6.5373927,1766.8,1766.7,4.796]
[1745524677395,8.19382569,1766.8,1766.7,4.796]
[1745524678006,13.854084,1766.8,1766.4,0.7551]
[1745524678210,5.66031242,1766.7,1766.5,4.796]
[1745524678714,5.95540632,1766.7,1766.5,4.796]
[1745524679099,5.95540632,1766.7,1766.4,0.7551]
[1745524679320,0.2950939,1766.7,1766.6,4.796]
[1745524679818,5.95536446,1766.7,1766.6,4.796]
[1745524680022,8.26505531,1766.7,1766.6,4.796]
[1745524681795,1.36722297,1766.7,1766.6,4.796]
[1745524682324,7.02749353,1766.7,1766.6,4.796]
[1745524682713,7.78729353,1766.7,1766.6,4.796]
[1745524683225,8.08271239,1766.7,1766.6,4.796]
[1745524685127,6.25078332,1766.7,1766.6,4.796]
[1745524685331,6.56850364,1766.7,1766.6,4.796]
[1745524686221,7.89858225,1766.7,1766.6,4.796]
[1745524688935,6.56850364,1766.7,1766.6,4.796]
[1745524691638,0.90823308,1766.7,1766.6,4.796]
[1745524692005,6.56850364,1766.7,1766.6,4.796]
[1745524693037,0.90823308,1766.7,1766.6,4.796]
[1745524694842,0.90823308,1766.7,1766.6,10.45659096]
[1745524695044,0.90823308,1766.7,1766.6,6.48708053]
[1745524695433,0.90823308,1766.7,1766.6,4.796]
[1745524696450,6.56850364,1766.7,1766.6,4.796]
[1745524696614,1.98036215,1766.7,1766.6,4.796]
[1745524701041,7.64063271,1766.7,1766.6,4.796]
[1745524701235,1.98036215,1766.7,1766.6,4.796]
[1745524701441,7.64063271,1766.7,1766.6,4.796]
[1745524703419,9.27070258,1766.7,1766.6,4.796]
[1745524705447,7.64063271,1766.7,1766.6,4.796]
[1745524706320,5.66123188,1766.4,1766.3,4.795]
[1745524706647,6.73336095,1766.4,1766.3,4.795]
[1745524707051,7.02853208,1766.4,1766.3,4.795]
[1745524707231,7.3462524,1766.4,1766.3,4.795]
[1745524708320,9.4630873,1766.4,1766.3,4.795]
[1745524710055,9.89303657,1766.4,1766.3,4.795]
[1745524711248,9.57531625,1766.4,1766.3,4.795]
[1745524711442,9.89306598,1766.4,1766.3,4.795]
[1745524711840,6.70410201,1766.4,1766.3,4.795]
[1745524712255,1.04287013,1766.4,1766.3,4.795]
[1745524712428,1.33831529,1766.4,1766.3,4.795]
[1745524713661,6.99954717,1766.4,1766.3,4.795]
[1745524715257,8.07167624,1766.4,1766.3,4.795]
[1745524716332,9.14949156,1766.4,1766.3,4.795]
[1745524717361,6.70410201,1766.4,1766.3,4.795]
[1745524717569,7.77623108,1766.4,1766.3,4.795]
[1745524719161,2.1149992,1766.4,1766.3,4.795]
[1745524719530,7.77623108,1766.4,1766.3,4.795]
[1745524722675,0.8025,1766.3,1766.0,4.794]
[1745524722883,1.07212907,1766.1,1766.0,4.794]
[1745524723879,1.3898788,1766.1,1766.0,4.794]
[1745524724543,7.05207233,1766.1,1766.0,4.794]
[1745524727149,7.34729412,1766.1,1766.0,4.794]
[1745524730749,0.61297152,1766.1,1766.0,11.25311415]
[1745524730961,0.31774973,1766.1,1766.0,12.43504035]
[1745524731176,0.31774973,1766.1,1766.0,12.37842557]
[1745524731678,0.31774973,1766.3,1766.1,5.66202846]
[1745524731843,0.31774973,1766.3,1766.2,6.45847294]
[1745524732048,0.31774973,1766.3,1766.2,2.00864741]
[1745524735383,0.31774973,1766.3,1766.2,7.67052035]
[1745524735782,0.31774973,1766.3,1766.2,2.00864741]
[1745524736485,0.31774973,1766.3,1766.2,7.67052035]
[1745524737983,0.31774973,1766.3,1766.2,2.00864741]
[1745524738490,0.31774973,1766.3,1766.2,6.80364741]
[1745524738657,0.31774973,1766.3,1766.2,12.46552035]
[1745524738858,0.31774973,1766.3,1766.2,6.80364741]
[1745524739160,1.3898788,1766.3,1766.1,6.42727742]
[1745524739382,1.3898788,1766.3,1766.2,4.795]
[1745524739383,7.05148308,1766.3,1766.2,4.795]
[1745524739569,12.71334279,1766.3,1766.1,4.795]
[1745524739869,0.31774973,1766.3,1766.1,4.795]
[1745524740251,6.73400201,1766.2,1766.1,4.795]
[1745524740585,8.0053421,1766.2,1766.1,4.795]
[1745524740978,8.32309183,1766.2,1766.1,4.795]
[1745524741363,1.3898788,1766.2,1766.1,4.795]
[1745524741890,7.05175174,1766.2,1766.1,4.795]
[1745524742288,1.3898788,1766.2,1766.1,4.795]
[1745524744385,7.05175174,1766.2,1766.1,4.795]
[1745524745885,10.05175174,1766.2,1766.1,4.795]
[1745524746088,5.66306422,1765.9,1765.8,4.795]
[1745524746287,7.86954302,1765.9,1765.8,4.795]
[1745524746489,2.63021648,1765.9,1765.3,5.66457928]
[1745524746692,1.07212907,1765.5,1765.4,4.795]
[1745524747489,0.31774973,1765.5,1765.4,11.28659104]
[1745524747688,0.31774973,1765.5,1765.4,12.98171226]
[1745524748392,0.31774973,1765.7,1765.4,12.98171226]
[1745524748593,1.3898788,1765.7,1765.4,11.28659104]
[1745524748925,12.71735918,1765.7,1765.3,5.66473472]
[1745524749094,5.66379825,1765.6,1765.2,6.4370887]
[1745524749389,1.3898788,1765.5,1765.2,6.43707258]
[1745524749588,1.3898788,1765.5,1765.2,0.7722]
[1745524749787,6.73703891,1765.3,1765.1,4.795]
[1745524750159,0.31774973,1765.2,1765.1,4.795]
[1745524750868,0.31774973,1765.2,1765.0,0.7797]
[1745524751067,0.31774973,1765.2,1764.9,5.66587296]
[1745524751068,1.3898788,1765.1,1764.8,28.22995023]
[1745524751286,1.3898788,1765.1,1764.8,36.72007029]
[1745524751584,1.3898788,1765.1,1764.9,5.66592944]
[1745524751789,1.3898788,1765.1,1764.8,31.05382006]
[1745524751991,1.07212907,1765.1,1764.8,31.05382006]
[1745524752991,1.07212907,1765.1,1764.8,36.71999473]
[1745524753194,7.94578951,1765.1,1764.8,21.784]
[1745524753502,0.43286788,1765.1,1764.8,27.4503551]
[1745524753699,7.03244869,1765.2,1764.8,27.4503551]
[1745524753998,7.03244869,1765.2,1764.8,10.4613551]
[1745524754299,12.69779745,1765.2,1764.8,10.4613551]
[1745524755002,12.69779745,1765.2,1764.7,0.00950381]
[1745524755003,6.43954788,1764.9,1764.7,0.00950381]
[1745524755203,1.07212907,1764.8,1764.7,0.00950381]
[1745524756187,10.44732309,1765.2,1764.8,0.7942]
[1745524756417,10.44732309,1765.2,1764.8,5.5892]
[1745524756418,0.70992022,1765.2,1764.8,5.5892]
[1745524756599,1.78204929,1765.2,1764.9,6.22495681]
[1745524757098,0.70992022,1765.2,1765.0,5.66560078]
[1745524757596,0.70992022,1765.2,1764.9,6.2247506]
[1745524757796,0.70992022,1765.2,1764.9,6.22472513]
[1745524758097,7.48773715,1765.1,1764.7,0.00950381]
[1745524758300,6.73849353,1764.8,1764.7,0.00950381]
[1745524758479,1.07212907,1764.8,1764.7,0.00950381]
[1745524758799,3.31568636,1765.0,1764.7,0.00950381]
[1745524758968,3.31568636,1765.0,1764.7,0.82280381]
[1745524758969,5.66585796,1765.0,1764.7,0.82280381]
[1745524759166,1.07212907,1764.9,1764.7,0.82280381]
[1745524759499,6.73829588,1764.9,1764.7,0.8133]
[1745524760087,6.73829588,1764.9,1764.5,5.66709781]
[1745524760300,1.07212907,1764.9,1764.6,6.54166794]
[1745524760697,1.07212907,1764.9,1764.6,6.54150888]
[1745524761610,3.0,1765.0,1764.6,0.87469807]
[1745524761810,12.04047063,1765.2,1764.8,5.66625031]
[1745524761811,4.78204929,1765.2,1764.8,5.66625031]
[1745524762008,4.78204929,1765.2,1764.8,6.45475031]
[1745524762188,10.44724607,1765.2,1764.9,0.11848671]
[1745524762388,5.66547218,1765.1,1764.9,0.11848671]
[1745524762715,5.66547218,1765.1,1764.8,6.45483736]
[1745524762716,16.11261702,1765.2,1765.0,0.11842838]
[1745524762882,16.11261702,1765.2,1764.8,6.45483736]
[1745524763085,16.11261702,1765.2,1764.9,0.11848671]
[1745524763288,16.11261702,1765.2,1764.8,6.45483736]
[1745524763610,6.73797208,1765.0,1764.9,0.11848671]
[1745524763976,6.73797208,1765.0,1764.7,0.7885]
[1745524764178,1.07212907,1765.0,1764.9,0.11848671]
[1745524764382,6.73767613,1765.1,1764.8,0.11854505]
[1745524764595,6.73767613,1765.1,1764.9,0.11848671]
[1745524765115,6.73767613,1765.1,1765.0,0.11842838]
[1745524765513,12.40332382,1765.1,1764.7,6.45496184]
[1745524765683,6.73767613,1765.1,1764.8,0.11854505]
[1745524766010,5.66587428,1765.0,1764.8,0.11854505]
[1745524766182,6.73767613,1765.1,1764.8,0.11854505]
[1745524766383,12.40333717,1765.1,1764.8,0.11854505]
[1745524767479,1.07212907,1764.9,1764.8,0.11854505]
[1745524767681,9.73817247,1764.9,1764.5,0.8105]
[1745524767992,7.56634325,1764.7,1764.4,4.797]
[1745524768201,8.66614383,1764.9,1764.5,5.66707217]
[1745524768406,1.07212907,1764.7,1764.5,0.8105]
[1745524768605,6.73895046,1764.7,1764.4,0.8105]
[1745524768814,1.07212907,1764.5,1764.2,6.47860293]
[1745524770500,1.07212907,1764.3,1764.1,4.797]
[1745524771097,0.796,1764.2,1763.9,5.6692325]
[1745524771447,5.66780568,1764.4,1763.9,0.7702]
[1745524771722,1.07212907,1764.3,1764.0,5.66870841]
[1745524772019,1.3673362,1764.3,1764.0,11.33746376]
[1745524772319,1.3673362,1764.3,1764.0,5.66870841]
[1745524773420,0.29520713,1764.3,1764.1,0.8026]
[1745524773619,0.42216051,1764.6,1764.4,0.8026]
[1745524773811,0.29516571,1764.5,1764.4,0.8026]
[1745524774010,1.36729478,1764.5,1764.4,0.8026]
[1745524774606,1.36729478,1764.5,1764.2,10.46609826]
[1745524774788,1.36729478,1764.5,1764.2,12.90344987]
[1745524774992,1.07212907,1764.3,1764.2,4.798]
[1745524775189,6.74009936,1764.3,1764.2,4.798]
[1745524775626,6.74009936,1764.3,1764.0,0.7809]
[1745524775834,1.07212907,1764.3,1764.0,6.44980224]
[1745524776125,1.07212907,1764.3,1764.0,0.7809]
[1745524776322,1.07212907,1764.3,1764.0,6.44978403]
[1745524776536,1.07212907,1764.3,1763.2,6.74336738]
[1745524776537,1.07212907,1764.1,1763.8,11.2655708]
[1745524776825,1.07212907,1764.1,1763.8,11.26548249]
[1745524777127,8.6681179,1764.3,1763.9,5.66910542]
[1745524777293,1.07212907,1764.2,1763.9,5.66910542]
[1745524777623,1.07212907,1764.2,1763.8,11.26542888]
[1745524777815,1.07212907,1764.2,1763.9,5.66925206]
[1745524778496,1.38902107,1764.2,1763.9,5.66925206]
[1745524779823,1.38902107,1764.2,1763.8,11.26537183]
[1745524780024,7.05741256,1764.2,1763.8,11.26537183]
[1745524780327,7.05741256,1764.2,1763.9,5.6692437]
[1745524780627,6.74052056,1764.2,1763.9,5.6692437]
[1745524781022,1.07212907,1764.2,1763.9,5.6692437]
[1745524781227,6.74053658,1764.2,1763.8,11.26536019]
[1745524781725,6.74053658,1764.2,1763.8,5.596]
[1745524781726,5.98578136,1764.1,1763.8,5.596]
[1745524781929,1.07212907,1764.0,1763.8,5.596]
[1745524782232,1.38911011,1764.0,1763.8,11.26549258]
[1745524782397,7.05807716,1764.0,1763.8,4.798]
[1745524782600,7.84207716,1764.0,1763.8,4.798]
[1745524782917,5.98623666,1763.9,1763.8,4.798]
[1745524783308,0.31698104,1763.9,1763.8,4.798]
[1745524784116,1.07212907,1764.0,1763.8,4.798]
[1745524784312,9.06541754,1764.2,1763.8,10.46733894]
[1745524784520,1.07212907,1764.2,1763.9,0.8217]
[1745524784720,0.31684292,1764.1,1763.9,6.49095136]
[1745524784901,0.31684292,1764.1,1763.9,6.49072789]
[1745524785299,0.31684292,1764.1,1763.8,10.46739957]
[1745524785300,1.07212907,1764.0,1763.8,10.46742294]
[1745524785498,0.31684292,1764.1,1763.8,10.46757492]
[1745524785499,2.20947199,1764.1,1763.8,10.46757492]
[1745524785710,7.56136223,1764.1,1763.8,4.798]
[1745524786131,7.56136223,1764.1,1763.8,10.46753729]
[1745524786334,1.89262907,1764.1,1763.8,10.46753729]
[1745524786830,1.07212907,1764.1,1763.9,5.66914044]
[1745524787228,5.668487,1764.2,1763.8,7.36527854]
[1745524787532,5.66910781,1764.0,1763.7,5.6182]
[1745524787825,1.07212907,1764.1,1763.7,5.6182]
[1745524787826,0.31694659,1763.9,1763.7,11.288026]
[1745524788210,0.31694659,1763.9,1763.7,5.6182]
[1745524788410,0.31694659,1763.9,1763.7,11.28800373]
[1745524788612,5.98597211,1764.0,1763.7,11.28800373]
[1745524789005,6.7415332,1763.9,1763.7,4.798]
[1745524789398,1.07212907,1763.9,1763.4,0.765]
[1745524789698,7.51098139,1763.7,1763.3,5.67092234]
[1745524790104,5.67025984,1763.6,1763.3,5.67092234]
[1745524790300,5.9871489,1763.6,1763.2,11.29919632]
[1745524790513,0.31688906,1763.6,1763.3,5.67105169]
[1745524790719,0.31688906,1763.6,1763.4,5.67075479]
[1745524790912,0.31688906,1763.6,1763.5,5.67054153]
[1745524791503,1.07212907,1763.8,1763.5,5.67054153]
[1745524791504,1.38901813,1763.8,1763.5,5.67054153]
[1745524791835,7.05880872,1763.8,1763.4,6.49014863]
[1745524792403,7.05880872,1763.8,1763.5,5.67050904]
[1745524792621,7.05880872,1763.8,1763.4,6.49015379]
[1745524792833,7.05869858,1763.8,1763.4,0.8195]
[1745524793030,7.05869858,1763.8,1763.5,5.67049511]
[1745524793235,5.98681275,1763.7,1763.5,0.10631511]
[1745524793440,0.31688906,1763.7,1763.5,0.10631511]
[1745524794233,0.61211139,1763.7,1763.5,5.77671425]
[1745524794430,0.61211139,1763.7,1763.5,11.44698286]
[1745524794633,0.61211139,1763.7,1763.5,12.67367323]
[1745524794832,0.61211139,1763.7,1763.5,7.00353499]
[1745524795026,0.61211139,1763.7,1763.6,5.67022]
[1745524795221,0.29522233,1763.7,1763.6,5.67022]
[1745524795539,0.31688906,1763.8,1763.7,6.4512985]
[1745524795945,0.61208488,1763.9,1763.7,6.56347474]
[1745524796234,0.61208488,1763.9,1763.7,0.89357624]
[1745524796442,1.07212907,1763.8,1763.7,0.11217624]
[1745524796807,13.21315682,1763.8,1763.5,0.0035]
[1745524797006,9.24271934,1763.8,1763.7,0.11217624]
[1745524797202,14.91261064,1763.8,1763.6,0.11223468]
[1745524797441,3.5731423,1763.8,1763.5,0.0035]
[1745524797638,0.31688906,1763.7,1763.5,5.67390785]
[1745524797852,0.31688906,1763.7,1763.5,0.0035]
[1745524798252,0.31688906,1763.7,1763.5,5.67392824]
[1745524798449,0.31688906,1763.7,1763.6,6.44912]
[1745524798624,0.31688906,1763.8,1763.7,5.6698985]
[1745524799027,0.31688906,1763.8,1763.6,6.44896566]
[1745524799247,0.29519582,1763.9,1763.6,7.66124682]
[1745524799558,6.74170799,1763.8,1763.5,5.67383163]
[1745524799738,1.07212907,1763.8,1763.5,0.0035]
[1745524799940,1.07212907,1763.8,1763.5,5.67391098]
[1745524800252,1.07212907,1763.8,1763.6,5.67009863]
[1745524800472,1.10469582,1763.9,1763.7,5.66988079]
[1745524800758,0.29519582,1763.9,1763.7,0.7589]
[1745524800937,0.29519582,1763.9,1763.6,0.7547]
[1745524800938,5.96460981,1763.9,1763.6,0.7547]
[1745524801252,6.08897925,1764.1,1763.7,10.46872536]
[1745524801475,1.07212907,1764.0,1763.7,10.46872536]
[1745524801817,6.74119413,1764.0,1763.7,4.8364]
[1745524802022,1.07212907,1764.0,1763.7,10.50616268]
[1745524802428,0.29519456,1764.1,1763.9,5.66913446]
[1745524802652,0.29519456,1764.1,1764.0,6.49503424]
[1745524802861,0.29519456,1764.1,1764.0,5.66893424]
[1745524803755,1.36732363,1764.1,1763.7,4.8364]
[1745524803979,6.74170611,1763.8,1763.7,0.0374]
[1745524804173,10.52260611,1763.8,1763.5,0.0035]
[1745524804315,10.54844907,1763.6,1763.5,0.0035]
[1745524804520,10.86596479,1763.6,1763.5,0.0035]
[1745524804735,1.12361572,1763.6,1763.5,0.0035]
[1745524805327,6.79383572,1763.6,1763.5,0.0035]
[1745524805567,9.2195649,1763.6,1763.5,0.0035]
[1745524806157,3.5493449,1763.6,1763.5,0.0035]
[1745524806330,9.2195649,1763.6,1763.5,0.0035]
[1745524807661,3.5493449,1763.6,1763.5,0.0035]
[1745524807957,0.31751572,1763.6,1763.5,0.0035]
[1745524808464,0.31751572,1763.6,1763.5,5.67404153]
[1745524808642,0.31751572,1763.7,1763.5,0.0035]
[1745524808843,0.31751572,1763.7,1763.5,5.6738818]
[1745524809056,0.31751572,1763.7,1763.5,4.8035]
[1745524809352,0.31751572,1763.7,1763.5,10.47397788]
[1745524809558,7.52091002,1763.9,1763.5,10.47397788]
[1745524809858,13.19042083,1763.9,1763.5,10.47397788]
[1745524810063,7.52091002,1763.9,1763.5,10.47397788]
[1745524810262,7.52091002,1763.9,1763.5,4.8035]
[1745524810476,7.52091002,1763.9,1763.5,11.52115086]
[1745524810636,0.31768653,1763.8,1763.5,11.52115086]
[1745524810967,5.98731272,1763.8,1763.5,5.85091575]
[1745524811168,0.31768653,1763.8,1763.5,4.8035]
[1745524811465,1.07212907,1763.7,1763.5,4.8035]
[1745524811766,0.31768653,1763.6,1763.5,4.8035]
[1745524813343,1.07212907,1763.7,1763.5,4.8035]
[1745524813546,6.7420851,1763.7,1763.5,4.8035]
[1745524813873,7.98326648,1763.7,1763.5,4.8035]
[1745524814075,2.31331045,1763.7,1763.5,4.8035]
[1745524814850,0.7608,1763.6,1763.5,4.8035]
[1745524815085,7.98333117,1763.7,1763.5,4.8035]
[1745524815655,0.31788847,1763.6,1763.5,4.8035]
[1745524815893,0.31788847,1763.6,1763.5,10.47404153]
[1745524816183,0.31788847,1763.6,1763.5,11.29884153]
[1745524816585,0.31788847,1763.8,1763.5,11.29884153]
[1745524817174,5.67022,1763.6,1763.5,0.8283]
[1745524817347,6.742192,1763.7,1763.5,0.0035]
[1745524817748,5.98810847,1763.6,1763.5,0.0035]
[1745524818049,0.31788847,1763.6,1763.5,0.0035]
[1745524819958,5.98810847,1763.6,1763.5,0.0035]
[1745524820563,0.31788847,1763.6,1763.5,0.0035]
[1745524821086,7.47831427,1763.6,1763.5,0.0035]
[1745524821579,7.9010621,1763.6,1763.5,0.0035]
[1745524823177,10.9258621,1763.6,1763.5,0.0035]
[1745524825995,11.22061581,1763.6,1763.5,0.0035]
[1745524827373,1.74139581,1763.6,1763.5,0.0035]
[1745524827583,6.28286218,1763.6,1763.5,0.0035]
[1745524828100,6.71757268,1763.6,1763.5,0.0035]
[1745524829020,0.61264218,1763.6,1763.5,0.0035]
[1745524830010,6.28286218,1763.6,1763.5,0.0035]
[1745524831303,7.47209519,1763.6,1763.5,0.0035]
[1745524831474,9.19352071,1763.6,1763.5,0.0035]
[1745524832884,9.24592071,1763.6,1763.5,0.0035]
[1745524834812,9.79592071,1763.6,1763.5,0.0035]
[1745524835002,13.79592071,1763.6,1763.5,0.0035]
[1745524836106,13.24592071,1763.6,1763.5,0.0035]
[1745524836931,13.24592071,1763.6,1763.5,0.10955625]
[1745524837536,13.24592071,1763.6,1763.5,0.0035]
[1745524839138,13.24592071,1763.6,1763.5,0.10955625]
[1745524840120,13.24592071,1763.6,1763.5,0.0035]
[1745524840321,13.24592071,1763.6,1763.5,0.10955625]
[1745524842516,5.67160796,1763.2,1763.0,0.7904]
[1745524842833,1.39001754,1763.1,1763.0,0.7904]
[1745524843935,0.31788847,1763.1,1763.0,0.7904]
[1745524848245,0.31788847,1763.1,1762.8,17.01560369]
[1745524848437,1.07212907,1762.9,1762.8,5.6704]
[1745524848938,1.39001754,1762.9,1762.8,5.6704]
[1745524850437,8.57207467,1762.9,1762.5,5.6091]
[1745524850643,1.07212907,1762.7,1762.5,5.6091]
[1745524850941,0.31788847,1762.6,1762.5,11.28284101]
[1745524852905,5.99132543,1762.6,1762.5,4.817]
[1745524854144,5.99132543,1762.6,1762.3,17.8206]
[1745524854640,5.99132543,1762.6,1762.3,23.49496928]
[1745524854840,0.31788847,1762.5,1762.3,6.47896928]
[1745524855044,7.06378425,1762.5,1762.3,5.6226]
[1745524855346,5.99196926,1762.4,1762.3,5.6226]
[1745524855542,0.31788847,1762.4,1762.3,4.818]
[1745524856042,0.31788847,1762.4,1762.2,0.7716]
[1745524856245,1.07212907,1762.3,1762.2,0.7716]
[1745524856424,12.42118408,1762.3,1762.1,0.8066]
[1745524856623,6.74653183,1762.3,1762.1,0.8066]
[1745524857222,6.74653183,1762.3,1762.0,5.67536794]
[1745524857223,5.67472477,1762.2,1761.9,5.6217]
[1745524857439,1.07212907,1762.0,1761.9,5.6217]
[1745524858218,7.17742233,1762.0,1761.9,5.6217]
[1745524858467,1.50205344,1762.0,1761.9,4.818]
[1745524858666,1.07212907,1762.0,1761.9,4.818]
[1745524858832,5.34599797,1762.3,1762.0,0.7532]
[1745524859231,5.67474629,1762.2,1762.0,0.7532]
[1745524859470,1.07212907,1762.1,1762.0,0.7532]
[1745524865049,6.74717588,1762.1,1761.8,6.44803538]
[1745524865868,8.03291381,1762.1,1761.8,0.7723]
[1745524866227,8.0329681,1762.1,1761.8,0.7723]
[1745524866428,0.29428785,1762.1,1761.9,5.67551018]
[1745524866666,0.29428785,1762.1,1762.0,0.7916]
[1745524867039,0.29428785,1762.1,1762.0,6.46696889]
[1745524867236,0.29428785,1762.1,1762.0,11.34371474]
[1745524867565,0.29449844,1762.7,1762.5,5.67357356]
[1745524867765,0.29449844,1762.7,1762.3,0.7621]
[1745524867766,0.29449844,1762.7,1762.4,5.67397971]
[1745524867942,0.29449844,1762.7,1762.3,6.43632696]
[1745524867943,1.07212907,1762.6,1762.3,6.43632696]
[1745524868143,6.74570192,1762.6,1762.3,0.7621]
[1745524868359,1.07212907,1762.6,1762.4,4.82]
[1745524868558,6.74561006,1762.6,1762.4,4.82]
[1745524868870,1.07212907,1762.6,1762.4,4.82]
[1745524869231,6.7455955,1762.6,1762.4,4.82]
[1745524869561,5.67375886,1762.5,1762.4,4.82]
[1745524869944,5.99042774,1762.5,1762.4,4.82]